Workbook

Sheet OS-Rev.and results 30 06 2023
A1: 3. Analyses by segment
A3: 3.1 Operating segments
A4: Revenue and results
A6: In millions of CHF | J6: January–June 2023
B7: Sales (a) | C7: Underlying Trading operating profit (b) | D7: Trading operating profit | F7: Net other trading income/(expenses) (c) | G7: of which impairment of property, plant and equipment | H7: of which restructuring costs | J7: Depreciation and amortization
A9: Zone NA | B9: 12,553 | C9: 2,713 | D9: 2,632 | F9: (81) | G9: (29) | H9: (44) | J9: (337)
A10: Zone EUR | B10: 9,467 | C10: 1,570 | D10: 1,373 | F10: (197) | G10: (5) | H10: (140) | J10: (414)
A11: Zone AOA | B11: 9,060 | C11: 2,068 | D11: 1,985 | F11: (83) | G11: (49) | H11: (16) | J11: (259)
A12: Zone LATAM | B12: 6,082 | C12: 1,202 | D12: 1,101 | F12: (101) | G12: (4) | H12: (21) | J12: (192)
A13: Zone GC | B13: 2,548 | C13: 422 | D13: 418 | F13: (4) | G13: (2) | H13: (2) | J13: (83)
A14: Nestlé Health Science | B14: 3,318 | C14: 432 | D14: 372 | F14: (60) | G14: (11) | H14: (31) | J14: (152)
A15: Nespresso | B15: 3,128 | C15: 678 | D15: 672 | F15: (6) | G15: (9) | H15: (1) | J15: (135)
A16: Other businesses (d) | B16: 137 | C16: (17) | D16: (17) | F16: 0 | G16: (1) | H16: 0 | J16: (19)
A17: Unallocated items (e) | B17: 0 | C17: (1,164) | D17: (1,185) | F17: (21) | G17: 0 | H17: (7) | J17: (131)
A18: Total | B18: =SUM(B9:B17) -> 46,293 | C18: =SUM(C9:C17) -> 7,904 | D18: =SUM(D9:D17) -> 7,351 | F18: =SUM(F9:F17) -> (553) | G18: =SUM(G9:G17) -> (110) | H18: =SUM(H9:H17) -> (262) | J18: =SUM(J9:J17) -> (1,722)
A21: In millions of CHF | J21: January–June 2022
B22: Sales (a) | C22: Underlying Trading operating profit (b) | D22: Trading operating profit | F22: Net other trading income/(expenses) (c) | G22: of which impairment of property, plant and equipment | H22: of which restructuring costs | J22: Depreciation and amortization
A24: Zone NA | B24: 12,138 | C24: 2,284 | D24: 1,829 | F24: (455) | G24: (33) | H24: (41) | J24: (348)
A25: Zone EUR | B25: 9,283 | C25: 1,606 | D25: 1,494 | F25: (112) | G25: (85) | H25: (14) | J25: (411)
A26: Zone AOA | B26: 9,335 | C26: 2,198 | D26: 2,170 | F26: (28) | G26: (5) | H26: (10) | J26: (290)
A27: Zone LATAM | B27: 5,659 | C27: 1,196 | D27: 1,160 | F27: (36) | G27: (6) | H27: (4) | J27: (178)
A28: Zone GC | B28: 2,677 | C28: 400 | D28: 403 | F28: 3 | G28: 2 | H28: (6) | J28: (93)
A29: Nestlé Health Science | B29: 3,167 | C29: 435 | D29: 101 | F29: (334) | G29: (6) | H29: (8) | J29: (144)
A30: Nespresso | B30: 3,190 | C30: 777 | D30: 757 | F30: (20) | G30: (8) | H30: — | J30: (143)
A31: Other businesses (d) | B31: 131 | C31: (5) | D31: (3) | F31: 2 | G31: — | H31: — | J31: (20)
A32: Unallocated items (e) | B32: — | C32: (1,208) | D32: (1,227) | F32: (19) | G32: (1) | H32: (4) | J32: (129)
A33: Total | B33: =SUM(B24:B32) -> 45,580 | C33: =SUM(C24:C32) -> 7,683 | D33: =SUM(D24:D32) -> 6,684 | F33: =SUM(F24:F32) -> (999) | G33: =SUM(G24:G32) -> (142) | H33: =SUM(H24:H32) -> (87) | J33: =SUM(J24:J32) -> (1,756)
A35: (a) Inter-segment sales are not significant.
A36: (b) Trading operating profit before Net other trading income/(expenses).
A37: (c) Included in Trading operating profit.
A38: (d) Composed of businesses not under the direct control of the Zones or GMBs and Group procurement activities.
A39: (e) Mainly corporate expenses as well as research and development costs.

Sheet OS-Other information 30 06 2023
A1: 3. Analyses by segment
A4: Other information
A6: In millions of CHF | C6: January–June 2023 | F6: January–June 2022
B7: Impairment of goodwill and non-commercialized intangible assets (c) | C7: Impairment of intangible assets (d) | E7: Impairment of goodwill and non-commercialized intangible assets (c) | F7: Impairment of intangible assets (d)
A9: Zone NA | B9: 0 | C9: (9) | E9: — | F9: (285)
A10: Zone EUR | B10: 0 | C10: (23) | E10: — | F10: —
A11: Zone AOA | B11: 0 | C11: (6) | E11: — | F11: —
A12: Zone LATAM | B12: 0 | C12: (14) | E12: — | F12: —
A13: Zone GC | B13: 0 | C13: 0 | E13: — | F13: —
A14: Nestlé Health Science | B14: (16) | C14: (3) | E14: — | F14: (314)
A15: Nespresso | B15: 0 | C15: 0 | E15: — | F15: —
A16: Other businesses (a) | B16: 0 | C16: 0 | E16: — | F16: —
A17: Unallocated items (b) | B17: 0 | C17: 0 | E17: — | F17: —
A18: Total | B18: =SUM(B9:B17) -> (16) | C18: =SUM(C9:C17) -> (55) | E18: =SUM(E9:E17) -> 0 | F18: =SUM(F9:F17) -> (599)
A20: (a) Composed of businesses not under the direct control of the Zones or GMBs and Group procurement activities.
A21: (b) Mainly corporate and research and development assets.
A22: (c) Included in Operating profit.
A23: (d) Included in Trading operating profit.

Sheet Prod.Rev.and results 30 06 2023
A1: 3. Analyses by segment
A3: 3.2 Products
A4: Revenue and results
A6: In millions of CHF | H6: January–June 2023
B7: Sales | C7: Underlying Trading operating profit (a) | D7: Trading operating profit | F7: Net other trading income/(expenses) (b) | G7: of which impairment of property, plant and equipment | H7: of which restructuring costs
A9: Powdered and Liquid Beverages | B9: 12,339 | C9: 2,607 | D9: 2,506 | F9: (101) | G9: (50) | H9: (32)
A10: Water | B10: 1,706 | C10: 187 | D10: 57 | F10: (130) | G10: (6) | H10: (94)
A11: Milk products and Ice cream | B11: 5,418 | C11: 1,261 | D11: 1,227 | F11: (34) | G11: (10) | H11: (15)
A12: Nutrition and Health Science | B12: 7,832 | C12: 1,529 | D12: 1,416 | F12: (113) | G12: (34) | H12: (40)
A13: Prepared dishes and cooking aids | B13: 5,931 | C13: 989 | D13: 924 | F13: (65) | G13: (3) | H13: (52)
A14: Confectionery | B14: 3,694 | C14: 536 | D14: 467 | F14: (69) | G14: (3) | H14: (11)
A15: PetCare | B15: 9,373 | C15: 1,959 | D15: 1,939 | F15: (20) | G15: (4) | H15: (11)
A16: Unallocated items (c) | B16: 0 | C16: (1,164) | D16: (1,185) | F16: (21) | G16: 0 | H16: (7)
A17: Total | B17: =SUM(B9:B16) -> 46,293 | C17: =SUM(C9:C16) -> 7,904 | D17: =SUM(D9:D16) -> 7,351 | F17: =SUM(F9:F16) -> (553) | G17: =SUM(G9:G16) -> (110) | H17: =SUM(H9:H16) -> (262)
A20: In millions of CHF | H20: January–June 2022
B21: Sales | C21: Underlying Trading operating profit (a) | D21: Trading operating profit | F21: Net other trading income/(expenses) (b) | G21: of which impairment of property, plant and equipment | H21: of which restructuring costs
A23: Powdered and Liquid Beverages | B23: 12,335 | C23: 2,915 | D23: 2,873 | F23: (42) | G23: (14) | H23: (7)
A24: Water | B24: 1,792 | C24: 175 | D24: 176 | F24: 1 | G24: 1 | H24: (2)
A25: Milk products and Ice cream | B25: 5,443 | C25: 1,192 | D25: 1,174 | F25: (18) | G25: (2) | H25: (2)
A26: Nutrition and Health Science | B26: 7,689 | C26: 1,502 | D26: 1,106 | F26: (396) | G26: (9) | H26: (18)
A27: Prepared dishes and cooking aids | B27: 6,137 | C27: 974 | D27: 599 | F27: (375) | G27: (52) | H27: (10)
A28: Confectionery | B28: 3,595 | C28: 498 | D28: 464 | F28: (34) | G28: (11) | H28: (6)
A29: PetCare | B29: 8,589 | C29: 1,635 | D29: 1,519 | F29: (116) | G29: (54) | H29: (38)
A30: Unallocated items (c) | B30: — | C30: (1,208) | D30: (1,227) | F30: (19) | G30: (1) | H30: (4)
A31: Total | B31: =SUM(B23:B30) -> 45,580 | C31: =SUM(C23:C30) -> 7,683 | D31: =SUM(D23:D30) -> 6,684 | F31: =SUM(F23:F30) -> (999) | G31: =SUM(G23:G30) -> (142) | H31: =SUM(H23:H30) -> (87)
A33: (a) Trading operating profit before Net other trading income/(expenses).
A34: (b) Included in Trading operating profit.
A35: (c) Mainly corporate expenses as well as research and development costs.

Sheet Prod.-Other inform. 30 06 23
A1: 3. Analyses by segment
A4: Other information
A6: In millions of CHF | C6: January–June 2023 | F6: January–June 2022
B7: Impairment of goodwill and non-commercialized intangible assets (b) | C7: Impairment of intangible assets (c) | E7: Impairment of goodwill and non-commercialized intangible assets (b) | F7: Impairment of intangible assets (c)
A9: Powdered and Liquid Beverages | B9: 0 | C9: (2) | E9: — | F9: —
A10: Water | B10: 0 | C10: (21) | E10: — | F10: —
A11: Milk products and Ice cream | B11: 0 | C11: 0 | E11: — | F11: —
A12: Nutrition and Health Science | B12: (16) | C12: (5) | E12: — | F12: (314)
A13: Prepared dishes and cooking aids | B13: 0 | C13: 0 | E13: — | F13: (285)
A14: Confectionery | B14: 0 | C14: (12) | E14: — | F14: —
A15: PetCare | B15: 0 | C15: (15) | E15: — | F15: —
A16: Unallocated items (a) | B16: 0 | C16: 0 | E16: — | F16: —
A17: Total | B17: =SUM(B9:B16) -> (16) | C17: =SUM(C9:C16) -> (55) | E17: =SUM(E9:E16) -> 0 | F17: =SUM(F9:F16) -> (599)
A19: (a) Mainly corporate and research and development assets.
A20: (b) Included in Operating profit.
A21: (c) Included in Trading operating profit.

Sheet Reconciliation 30 06 2023
A1: 3. Analyses by segment
A3: 3.4 Reconciliation from Underlying Trading operating profit to profit before taxes, associates and joint ventures
A5: In millions of CHF | B5: January–June 2023 | C5: January–June 2022
A6: Underlying trading operating profit (a) as per Note 3.1 | B6: 7,904 | C6: 7,683
A7: Net other trading income/(expenses) as per Note 5.1 | B7: (553) | C7: (999)
A8: Trading operating profit as per Note 3.1 | B8: =SUM(B6:B7) -> 7,351 | C8: =SUM(C6:C7) -> 6,684
A9: Impairment of goodwill and non-commercialized intangible assets | B9: (16) | C9: 0
A10: Net other operating income/(expenses) | B10: (73) | C10: (65)
A11: Operating profit | B11: =SUM(B8:B10) -> 7,262 | C11: =SUM(C8:C10) -> 6,619
A12: Net financial income/(expense) | B12: (697) | C12: (434)
A13: Profit before taxes, associates and joint ventures | B13: =SUM(B11:B12) -> 6,565 | C13: =SUM(C11:C12) -> 6,185
A14: (a) Trading operating profit before Net other trading income/(expenses).
